bitfinex/quotes_ETHUSD_20241225
["timestamp","ask_amount","ask_price","bid_price","bid_amount"]
[1735105102922,2.54305848,3501.1,3500.1,0.55]
[1735105103128,2.85642,3500.9,3500.2,0.55]
[1735105104531,2.85642,3500.9,3500.3,0.7845]
[1735105104726,2.85642,3500.9,3500.4,0.55]
[1735105104963,2.85651,3500.8,3500.4,0.55]
[1735105106984,0.362061,3500.8,3500.3,0.7845]
[1735105107129,0.7641,3501.1,3500.1,0.7845]
[1735105107656,0.8323,3500.5,3500.0,1.19401842]
[1735105108234,2.85696,3500.3,3500.0,1.19401842]
[1735105109274,2.85696,3500.3,3499.9,0.55]
[1735105110285,0.8323,3500.7,3499.9,0.55]
[1735105110784,2.85681,3500.4,3499.9,0.55]
[1735105112727,2.85667,3500.6,3499.9,1.28140977]
[1735105112933,2.85667,3500.6,3500.1,0.55]
[1735105113146,2.61125848,3501.1,3500.1,0.55]
[1735105113351,2.85678,3500.5,3500.1,0.55]
[1735105115988,2.61125848,3501.1,3500.0,0.7845]
[1735105116280,2.85686,3500.4,3500.0,0.7845]
[1735105117481,2.85657,3500.7,3500.0,0.7845]
[1735105117654,2.85699,3500.2,3500.0,0.7845]
[1735105119972,0.8323,3500.8,3500.0,0.7845]
[1735105120286,2.85683,3500.4,3500.0,0.7845]
[1735105121079,1.77895848,3501.0,3500.2,0.8096]
[1735105121334,2.85639,3501.0,3500.5,0.55]
[1735105121532,1.77895848,3501.1,3500.5,0.55]
[1735105122292,2.85652,3500.8,3500.4,0.8096]
[1735105122494,0.285652,3500.7,3500.4,0.8096]
[1735105122808,2.85652,3500.8,3500.4,0.8096]
[1735105125426,2.85652,3500.8,3500.5,0.9876567]
[1735105125769,0.7899,3500.9,3500.5,0.9876567]
[1735105126162,2.85665,3500.6,3500.5,0.9876567]
[1735105126520,2.85669,3500.6,3500.4,0.8096]
[1735105126721,0.364659,3500.6,3500.2,1.19401842]
[1735105126968,2.85684,3500.4,3500.2,1.19401842]
[1735105127122,2.85666,3500.6,3500.2,1.19401842]
[1735105127322,2.85666,3500.6,3500.1,0.8096]
[1735105128387,2.85666,3500.6,3500.2,2.46938158]
[1735105129138,2.85648,3500.8,3500.2,2.46938158]
[1735105129344,2.7108993,3501.0,3500.1,1.19401842]
[1735105129345,0.7899,3500.4,3500.1,1.19401842]
[1735105129590,2.85697,3500.2,3500.1,1.19401842]
[1735105130379,2.85697,3500.2,3499.8,1.19401842]
[1735105130380,2.85722,3499.9,3499.8,1.19401842]
[1735105131411,2.85708,3500.1,3499.8,1.19401842]
[1735105131695,2.85708,3500.1,3499.6,1.78557931]
[1735105131696,2.85708,3500.1,3499.5,1.19401842]
[1735105132611,2.85708,3500.1,3499.6,3.66514267]
[1735105132758,2.85708,3500.1,3499.7,0.8096]
[1735105133909,2.85708,3500.1,3499.8,0.9884497]
[1735105134700,0.7899,3500.4,3499.8,0.9884497]
[1735105134908,2.85689,3500.4,3499.8,0.9884497]
[1735105135121,2.8569,3500.3,3499.9,0.55]
[1735105135322,4.05648102,3500.5,3500.0,0.8096]
[1735105136120,1.19972102,3500.5,3500.0,0.8096]
[1735105136320,1.19972102,3500.5,3500.0,0.83816839]
[1735105136475,2.8566,3500.7,3500.2,0.7555]
[1735105137824,2.8566,3500.7,3500.3,2.47064455]
[1735105139110,2.8566,3500.7,3500.4,0.98825782]
[1735105140217,2.8566,3500.7,3500.2,1.94951842]
[1735105140562,2.85674,3500.5,3500.2,1.94951842]
[1735105141250,2.85674,3500.5,3500.3,0.98781467]
[1735105141561,3.67581,3500.4,3500.3,0.98781467]
[1735105142413,2.8573,3499.8,3499.7,1.19401842]
[1735105142660,3.6763,3499.8,3499.7,1.19401842]
[1735105144014,2.85738,3499.7,3499.1,0.55]
[1735105144369,2.85786,3499.2,3499.0,1.94951842]
[1735105144513,2.85746,3499.6,3499.0,1.19401842]
[1735105144715,2.85787,3499.1,3499.0,1.19401842]
[1735105145162,3.5298993,3499.8,3498.8,1.19401842]
[1735105145163,2.85804,3498.9,3498.8,1.19401842]
[1735105146575,2.85832,3498.6,3498.4,1.19401842]
[1735105147169,2.85836,3498.5,3498.4,1.19401842]
[1735105147531,2.85858,3498.3,3497.9,1.19401842]
[1735105147732,3.67726,3498.7,3497.9,1.19401842]
[1735105147933,2.85877,3498.0,3497.9,1.19401842]
[1735105148734,3.67777,3498.0,3497.9,1.19401842]
[1735105148967,0.819,3498.0,3497.2,1.94951842]
[1735105149163,2.85893,3497.9,3497.2,1.94951842]
[1735105149546,2.85896,3497.8,3497.2,1.94951842]
[1735105149749,2.8587,3498.1,3497.3,0.55]
[1735105150054,0.819,3498.7,3497.6,0.7555]
[1735105150376,0.819,3498.2,3497.2,0.7555]
[1735105150939,3.5298993,3498.5,3497.3,0.7555]
[1735105151137,5.5692693,3498.5,3497.4,0.7555]
[1735105151367,5.5692693,3498.5,3497.5,0.661482]
[1735105151586,2.85837,3498.5,3497.7,0.55]
[1735105151953,2.85837,3498.5,3497.6,0.55]
[1735105152153,2.85837,3498.5,3497.8,0.55]
[1735105152987,0.819,3498.8,3497.8,0.55]
[1735105153190,0.819,3498.8,3497.7,0.7555]
[1735105153191,2.7108993,3498.5,3497.7,0.7555]
[1735105153387,2.85879,3498.0,3497.7,0.7555]
[1735105154994,2.85856,3498.3,3497.7,0.7555]
[1735105156801,2.85834,3498.6,3497.8,0.55]
[1735105156944,0.63879993,3498.7,3497.8,0.55]
[1735105157280,2.85837,3498.5,3497.8,0.55]
[1735105160573,2.85846,3498.4,3497.8,0.55]
[1735105161066,2.85858,3498.3,3497.7,0.7555]
[1735105161790,2.85861,3498.2,3497.7,0.7555]
[1735105163665,2.85886,3497.9,3497.7,0.7555]
[1735105163969,2.85886,3497.9,3497.5,0.8182]
[1735105164769,2.85871,3498.1,3497.5,0.8182]
[1735105165067,2.85885,3498.0,3497.5,0.8182]
[1735105165268,0.285861,3498.2,3497.5,0.8182]
[1735105165476,2.85901,3497.8,3497.5,0.8182]
[1735105165856,2.85902,3497.7,3497.5,0.8182]
[1735105166045,0.285861,3498.2,3497.5,0.8182]
[1735105166246,2.85891,3497.9,3497.5,0.8182]
[1735105167233,0.285861,3498.2,3497.5,0.8182]
[1735105167574,2.85895,3497.8,3497.5,0.8182]
[1735105168475,0.783,3498.1,3496.8,0.55]
[1735105168777,2.85897,3497.8,3497.0,0.55]
[1735105169462,2.85897,3497.8,3497.2,0.55]
[1735105169646,0.783,3498.1,3497.2,0.55]
[1735105169845,0.285861,3498.2,3496.9,0.38359087]
[1735105169846,2.85879,3498.0,3497.3,0.766]
[1735105170047,2.8589,3497.9,3497.3,0.766]
[1735105172803,2.85894,3497.8,3497.3,0.766]
[1735105173359,0.55698393,3497.8,3497.3,0.766]
[1735105173683,2.85909,3497.7,3497.3,0.766]
[1735105173997,5.5696393,3498.1,3497.3,0.766]
[1735105173998,2.85912,3497.6,3497.3,0.766]
[1735105174409,2.85926,3497.4,3496.7,0.766]
[1735105174557,2.85926,3497.4,3496.8,0.55]
[1735105175310,0.46647304,3497.4,3496.7,0.766]
[1735105175514,2.85945,3497.2,3496.7,0.766]
[1735105176079,0.783,3497.8,3496.7,0.766]
[1735105176300,2.85886,3497.9,3496.8,0.766]
[1735105176483,2.85886,3497.9,3497.0,0.766]
[1735105176782,0.783,3498.4,3497.2,0.766]
[1735105176989,2.8584,3498.5,3497.4,3.40919]
[1735105177180,2.8584,3498.5,3497.5,0.766]
[1735105177363,2.8584,3498.5,3497.6,1.316]
[1735105178011,0.783,3498.8,3497.6,0.766]
[1735105178214,2.85858,3498.3,3497.6,0.766]
[1735105178508,2.85862,3498.2,3497.6,0.766]
[1735105182965,2.7108993,3498.6,3497.6,0.766]
[1735105183167,2.8584,3498.5,3497.7,0.55]
[1735105185919,2.85851,3498.4,3497.7,0.55]
[1735105186215,3.70997422,3498.6,3497.7,0.55]
[1735105187777,2.85863,3498.2,3497.7,0.55]
[1735105188957,0.99907492,3498.6,3497.7,0.55]
[1735105189227,2.85853,3498.3,3497.7,0.55]
[1735105192123,2.85853,3498.3,3497.8,0.9883682]
[1735105193075,3.34969923,3498.7,3497.9,0.7817]
[1735105193301,2.85846,3498.4,3497.9,0.7817]
[1735105195934,4.05796102,3498.7,3498.0,0.55]
[1735105196231,4.05796102,3498.7,3498.5,0.7655]
[1735105196232,1.19972102,3498.7,3498.5,0.7655]
[1735105196390,1.19972102,3498.7,3498.6,1.74705]
[1735105197696,2.85764,3499.4,3498.6,3.45076183]
[1735105197877,2.85764,3499.4,3498.8,0.55]
[1735105198043,4.05718102,3499.7,3498.9,0.7655]
[1735105198766,2.7108993,3499.8,3498.9,1.75318473]
[1735105199094,2.85757,3499.5,3498.9,1.75318473]
[1735105200474,2.85757,3499.5,3498.9,0.7655]
[1735105200674,2.85763,3499.4,3498.9,0.7655]
[1735105205564,2.7108993,3499.4,3498.9,0.7655]
[1735105205761,2.8578,3499.2,3498.9,0.7655]
[1735105206675,0.55686993,3499.2,3498.3,0.7655]
[1735105208493,2.85802,3499.0,3498.3,0.7655]
[1735105209721,2.8578,3499.2,3498.4,0.57858304]
[1735105210013,2.85757,3499.5,3498.8,0.55]
[1735105211922,2.85768,3499.4,3498.8,0.55]
[1735105212223,0.818,3499.2,3498.4,0.812]
[1735105212386,2.85812,3498.8,3498.4,0.812]
[1735105212717,2.85828,3498.7,3498.4,0.812]
[1735105212926,0.818,3498.9,3498.1,1.19401842]
[1735105213066,2.85854,3498.3,3498.1,1.19401842]
[1735105214108,2.85854,3498.3,3498.0,0.812]
[1735105216218,2.85835,3498.6,3498.0,0.812]
[1735105216427,0.818,3498.9,3498.0,0.812]
[1735105216428,2.85843,3498.5,3498.0,0.812]
[1735105217190,2.85821,3498.7,3498.0,0.812]
[1735105218752,2.85821,3498.7,3498.1,0.55]
[1735105219299,2.85806,3498.9,3498.2,0.812]
[1735105220539,2.85812,3498.8,3498.2,0.812]
[1735105221836,3.67586,3499.2,3498.2,0.812]
[1735105222046,2.85821,3498.7,3498.2,0.812]
[1735105223939,2.85821,3498.7,3497.9,1.74401842]
[1735105223940,2.85845,3498.4,3497.9,2.00601842]
[1735105224236,2.85853,3498.3,3497.9,2.00601842]
[1735105224989,2.85853,3498.3,3497.9,0.812]
[1735105226707,2.85838,3498.5,3497.9,0.812]
[1735105228707,0.8221,3498.4,3497.7,2.01021842]
[1735105228919,2.85878,3498.0,3497.7,1.19401842]
[1735105229601,3.68059,3498.4,3497.7,1.19401842]
[1735105229833,3.68059,3498.4,3497.6,0.98746814]
[1735105230021,2.85883,3498.0,3497.6,0.98746814]
[1735105230961,2.85883,3498.0,3497.5,0.98746814]
[1735105235482,2.85883,3498.0,3497.6,0.8162]
[1735105235686,2.85848,3498.4,3497.6,0.55]
[1735105235842,2.85848,3498.4,3497.7,0.8162]
[1735105238595,3.5329993,3498.6,3497.7,0.8162]
[1735105238791,2.85853,3498.3,3497.7,0.8162]
[1735105241213,4.47211423,3498.6,3497.7,0.8162]
[1735105241356,2.8585,3498.4,3497.7,0.8162]
[1735105242884,0.8221,3498.6,3497.7,0.8162]
[1735105243088,2.85849,3498.4,3497.7,0.8162]
[1735105243266,0.8221,3498.6,3497.7,0.8162]
[1735105243452,2.85854,3498.3,3497.7,0.8162]
[1735105245203,2.85863,3498.2,3497.7,0.8162]
[1735105245403,1.490125,3498.6,3497.7,0.8162]
[1735105245901,2.85852,3498.4,3497.7,0.8162]
[1735105247256,2.85856,3498.3,3497.7,0.8162]
[1735105249072,2.7108993,3498.1,3497.5,1.19401842]
[1735105249278,2.8591,3497.6,3497.5,1.19401842]
[1735105250610,2.8591,3497.6,3497.4,0.8125]
[1735105253298,2.85895,3497.8,3497.4,0.8125]
[1735105257396,2.85879,3498.0,3497.4,0.8125]
[1735105260028,2.85879,3498.0,3497.5,2.47134748]
[1735105260209,3.49668893,3498.0,3497.5,2.47134748]
[1735105260824,0.63789893,3498.0,3497.5,2.47134748]
[1735105261031,2.85885,3497.9,3497.5,2.47134748]
[1735105261445,2.85885,3497.9,3497.4,0.8125]
[1735105262466,0.63789893,3498.0,3497.4,0.8125]
[1735105262770,2.85872,3498.1,3497.4,0.8125]
[1735105263359,3.5201993,3498.3,3497.4,0.8125]
[1735105263655,0.4442917,3498.2,3497.4,0.8125]
[1735105263858,2.8588,3498.0,3497.5,2.4714676]
[1735105264045,0.4442917,3498.2,3497.5,2.4714676]
[1735105264241,2.85892,3497.9,3497.5,2.4714676]
[1735105264481,2.85892,3497.9,3497.4,0.8125]
[1735105265497,2.85904,3497.7,3497.4,0.8125]
[1735105265850,2.85869,3498.1,3497.4,0.8125]
[1735105266087,2.85888,3497.9,3497.4,0.8125]
[1735105266960,2.85894,3497.8,3497.4,0.8125]
[1735105268297,2.85894,3497.8,3497.5,0.98895305]
[1735105270607,2.85894,3497.8,3497.4,0.8125]
[1735105271707,2.85894,3497.8,3497.5,1.48385425]
[1735105272258,0.6823181,3498.0,3497.5,1.48385425]
[1735105272550,2.85862,3498.2,3497.5,1.48385425]
[1735105272749,2.85846,3498.4,3497.6,1.80697072]
[1735105272909,2.85888,3497.9,3497.6,0.98927072]
[1735105273848,2.85888,3497.9,3497.4,1.19401842]
[1735105274215,2.85903,3497.7,3497.4,1.19401842]
[1735105274912,0.7953,3498.1,3497.4,1.19401842]
[1735105275246,3.20938993,3498.0,3497.5,2.47386425]
[1735105275452,2.8591,3497.6,3497.5,2.47386425]
[1735105275978,2.8591,3497.6,3497.3,2.01171842]
[1735105276559,2.85896,3497.8,3497.3,2.01171842]
[1735105276769,2.85905,3497.7,3497.3,2.01171842]
[1735105276937,2.85905,3497.7,3497.4,2.47541152]
[1735105278079,2.85905,3497.7,3497.5,0.99016461]
[1735105279485,2.85905,3497.7,3497.3,2.01171842]
[1735105280355,3.20938993,3498.0,3497.3,2.01171842]
[1735105280557,0.67155892,3497.9,3497.4,2.47520808]
[1735105281489,0.67155892,3497.9,3497.5,0.99008323]
[1735105281792,2.85908,3497.7,3497.5,0.99008323]
[1735105282148,1.2772692,3497.6,3497.5,0.99008323]
[1735105282581,4.1363692,3497.6,3497.5,0.99008323]
[1735105282765,2.85926,3497.4,3497.3,1.19401842]
[1735105282966,4.1365292,3497.4,3497.3,1.19401842]
[1735105284504,2.85967,3496.9,3496.8,1.19401842]
[1735105284707,5.5258532,3496.9,3496.8,1.19401842]
[1735105285777,5.5258532,3496.9,3496.3,1.19401842]
[1735105285778,2.85986,3496.7,3496.3,1.19401842]
[1735105286996,2.85986,3496.7,3496.1,0.7537]
[1735105287696,2.85986,3496.7,3496.2,0.55]
[1735105292659,2.85995,3496.6,3496.2,0.55]
[1735105294439,2.85978,3496.8,3496.2,0.55]
[1735105294643,2.85978,3496.8,3496.3,0.7759]
[1735105294793,2.85945,3497.2,3496.5,0.7759]
[1735105295737,2.85962,3497.0,3496.5,0.7759]
[1735105296592,2.85992,3496.6,3496.5,0.7759]
[1735105296988,0.7951,3496.6,3496.0,1.96991842]
[1735105297194,2.86012,3496.4,3496.0,1.96991842]
[1735105297491,2.86012,3496.4,3496.0,0.7759]
[1735105299644,2.85992,3496.6,3496.0,0.7759]
[1735105299854,4.05922113,3497.1,3496.3,0.55]
[1735105299989,4.05922113,3497.1,3496.5,0.7733]
[1735105300335,2.85952,3497.1,3496.6,0.55]
[1735105300633,1.19970113,3497.2,3496.7,0.7733]
[1735105301141,4.05916113,3497.2,3496.7,0.7733]
[1735105301641,2.85946,3497.2,3496.7,0.7733]
[1735105305967,2.85954,3497.1,3496.7,0.7733]
[1735105307338,2.85959,3497.0,3496.7,0.7733]
[1735105309272,2.85968,3496.9,3496.7,0.7733]
[1735105310413,2.85975,3496.8,3495.9,0.7733]
[1735105310722,2.85991,3496.7,3495.9,0.7733]
[1735105310920,2.85996,3496.6,3495.9,0.7733]
[1735105311576,2.85996,3496.6,3496.0,0.55]
[1735105314627,2.85996,3496.6,3496.2,0.55]
[1735105314918,2.85996,3496.6,3495.8,0.8268]
[1735105315122,4.7232224,3497.3,3496.2,0.8268]
[1735105315321,2.85976,3496.8,3496.2,0.8268]
[1735105316421,2.85987,3496.7,3496.2,0.8268]
[1735105320143,2.8597,3496.9,3496.2,0.8268]
[1735105321344,2.8597,3496.9,3496.2,1.036855]
[1735105321548,2.8597,3496.9,3496.3,0.8268]
[1735105321901,2.8597,3496.9,3496.4,0.55]
[1735105322134,2.8597,3496.9,3496.6,0.55]
[1735105325921,2.8597,3496.9,3496.7,0.0229822]
[1735105329579,2.85975,3496.8,3496.7,0.0229822]
[1735105329788,3.64395,3496.8,3496.7,0.0229822]
[1735105331405,5.42290848,3496.8,3496.7,0.0229822]
[1735105332413,8.42290848,3496.8,3496.7,2.2e-06]
[1735105332706,10.71441791,3496.8,3496.7,2.2e-06]
[1735105334301,11.32169029,3496.8,3496.7,2.2e-06]
[1735105335918,8.32345889,3496.8,3496.7,2.2e-06]
[1735105336215,11.03918016,3496.8,3496.7,2.2e-06]
[1735105337109,13.43968161,3496.8,3496.7,2.2e-06]
[1735105339329,10.43968161,3496.8,3496.7,2.2e-06]
[1735105339532,9.83884255,3496.8,3496.7,2.2e-06]
[1735105340218,8.40133829,3496.8,3496.7,2.2e-06]
[1735105341293,6.33892128,3496.8,3496.7,2.2e-06]
[1735105341498,7.61713829,3496.8,3496.7,2.2e-06]
[1735105342033,5.8174759,3496.8,3496.7,2.2e-06]
[1735105343534,7.01706122,3496.8,3496.7,2.2e-06]
[1735105343835,5.33755233,3496.8,3496.7,2.2e-06]
[1735105344023,4.05933532,3496.8,3496.7,2.2e-06]
[1735105344223,1.19958532,3496.8,3496.7,0.7521022]
[1735105344623,1.19958532,3496.9,3496.7,0.7521022]
[1735105345138,1.19958532,3496.9,3496.8,0.55]
[1735105345339,1.19958532,3496.9,3496.8,1.3171]
[1735105346145,1.19958532,3497.2,3496.8,1.3171]
[1735105347347,2.85935,3497.3,3496.8,1.3171]
[1735105351756,1.19958532,3497.6,3496.8,1.3171]
[1735105351971,2.85943,3497.2,3496.8,1.3171]
[1735105353968,2.85943,3497.2,3496.7,2.2e-06]
[1735105353969,2.85975,3496.8,3496.7,2.2e-06]
[1735105355934,4.05933532,3496.8,3496.7,2.2e-06]
[1735105357019,10.54392065,3496.8,3496.7,2.2e-06]
[1735105357237,9.34433533,3496.8,3496.7,2.2e-06]
[1735105358234,11.74483678,3496.8,3496.7,2.2e-06]
[1735105358437,13.56093761,3496.8,3496.7,2.2e-06]
[1735105359479,14.15866756,3496.8,3496.7,2.2e-06]
[1735105360868,11.16043616,3496.8,3496.7,2.2e-06]
[1735105363723,13.55720388,3496.8,3496.7,2.2e-06]
[1735105368291,12.78780388,3496.8,3496.7,2.2e-06]
[1735105369988,13.58180388,3496.8,3496.7,2.2e-06]
[1735105370162,11.18503616,3496.8,3496.7,2.2e-06]
[1735105370362,12.01263616,3496.8,3496.7,2.2e-06]
[1735105370889,11.21863616,3496.8,3496.7,2.2e-06]
[1735105375047,13.61540388,3496.8,3496.7,2.2e-06]
[1735105375452,7.07261855,3496.8,3496.7,2.2e-06]
[1735105375690,5.25651772,3496.8,3496.7,2.2e-06]
[1735105376090,4.65642169,3496.8,3496.7,2.2e-06]
[1735105377683,4.05749166,3496.8,3496.7,2.2e-06]
[1735105379508,2.85975,3496.8,3496.7,2.2e-06]
[1735105393513,2.85975,3496.8,3496.7,0.7926022]
[1735105399051,3.73111734,3496.8,3496.7,2.2e-06]
[1735105401053,5.52778903,3496.8,3496.7,2.2e-06]
[1735105403561,3.73111734,3496.8,3496.7,2.2e-06]
[1735105407545,9.30043107,3496.8,3496.7,2.2e-06]
[1735105407853,2.86041,3496.0,3495.6,1.98971842]
[1735105408050,2.86065,3495.7,3495.6,1.19401842]
[1735105408506,2.86065,3495.7,3495.4,2.58127931]
[1735105408507,2.86098,3495.3,3495.2,1.19401842]
[1735105410039,1.20088695,3495.4,3495.1,0.7957]
[1735105410237,2.86106,3495.2,3495.1,0.7957]
[1735105410902,1.20088695,3495.4,3494.5,1.3457]
[1735105411112,2.86123,3495.0,3494.5,1.3457]
[1735105412820,1.20088695,3495.3,3494.6,0.7957]
[1735105413067,2.86108,3495.2,3494.6,0.7957]
[1735105415536,2.8609,3495.4,3494.8,0.7957]
[1735105416065,2.8609,3495.4,3495.0,0.7957]
[1735105424478,4.47953407,3495.9,3495.0,0.7957]
[1735105424631,2.86103,3495.3,3495.0,0.7957]
[1735105426294,0.70493645,3495.8,3495.0,0.7957]
[1735105426604,2.86082,3495.5,3495.0,0.7957]
[1735105428166,1.20088695,3496.0,3495.4,0.7567]
[1735105428368,1.20088695,3496.0,3495.0,3.0]
[1735105428369,1.20088695,3496.0,3495.7,0.55]
[1735105428899,1.20088695,3496.1,3495.8,0.7567]
[1735105429061,1.20088695,3496.1,3496.0,0.7567]
[1735105429269,1.20088695,3496.1,3496.0,1.3067]
[1735105430271,2.86004,3496.5,3496.0,1.3067]
[1735105434174,2.86004,3496.5,3496.1,0.55]
[1735105434485,2.85986,3496.7,3496.2,0.7951]
[1735105435292,1.20088695,3497.0,3496.2,0.7951]
[1735105435490,2.85993,3496.6,3496.2,0.7951]
[1735105435976,2.86002,3496.5,3496.2,0.7951]
[1735105436221,2.86016,3496.3,3496.2,0.7951]
[1735105438225,3.7853,3496.4,3495.3,0.7951]
[1735105438430,2.8609,3495.4,3495.3,0.7951]
[1735105438577,2.71518533,3496.2,3495.3,0.7951]
[1735105438780,2.86075,3495.6,3495.3,0.7951]
[1735105439508,2.71518533,3496.6,3495.3,0.7951]
[1735105439671,1.20088695,3496.4,3495.3,0.7951]
[1735105440094,2.86041,3496.0,3495.5,0.7951]
[1735105441122,2.86041,3496.0,3495.6,0.55]
[1735105442331,2.86041,3496.0,3494.7,10.01401842]
[1735105442332,2.71518533,3496.0,3495.2,0.7951]
[1735105442479,2.86098,3495.4,3495.2,0.7951]
[1735105443122,2.71518533,3496.0,3495.2,0.7951]
[1735105443376,2.86098,3495.3,3495.2,0.7951]
[1735105444877,2.86076,3495.6,3494.2,1.3451]
[1735105445110,2.86109,3495.2,3494.3,0.7951]
[1735105445494,2.86109,3495.2,3494.4,0.55]
[1735105445696,2.86109,3495.2,3494.5,0.7951]
[1735105445894,2.86109,3495.2,3494.6,0.55]
[1735105446114,2.86155,3494.6,3494.5,0.7951]
[1735105446422,2.86147,3494.7,3494.1,0.7951]
[1735105446626,2.86183,3494.3,3494.1,0.7951]
[1735105446839,2.86188,3494.2,3494.1,0.7951]
[1735105454112,5.57690533,3494.4,3494.1,0.7951]
[1735105454282,2.86172,3494.4,3494.1,0.7951]
[1735105468569,2.71518533,3494.8,3494.2,0.55]
[1735105468750,2.86156,3494.6,3494.2,0.55]
[1735105472168,2.71518533,3494.8,3494.2,0.55]
[1735105472337,2.86164,3494.5,3494.2,0.55]
[1735105476287,1.27957397,3494.4,3494.2,0.55]
[1735105477852,4.14129397,3494.4,3494.2,0.55]
[1735105478301,2.86188,3494.2,3494.1,0.7951]
[1735105478436,4.14145397,3494.2,3494.1,0.7951]
[1735105481270,4.14145397,3494.2,3493.4,0.7947]
[1735105481586,4.14145397,3494.2,3493.8,0.55]
[1735105487003,4.14169397,3494.0,3493.7,0.7947]
[1735105487797,2.86212,3494.0,3493.7,0.7947]
[1735105488004,4.14148397,3494.2,3493.7,0.7947]
[1735105488501,4.14148397,3494.2,3493.8,0.55]
[1735105491284,1.27957397,3494.0,3493.8,0.55]
[1735105491485,1.27957397,3494.0,3493.9,1.54198424]
[1735105492831,1.27957397,3494.0,3493.9,3.03065878]
[1735105493829,4.14148397,3494.2,3493.9,3.03065878]
[1735105494127,4.06268695,3494.3,3493.9,3.03065878]
[1735105494933,2.8618,3494.3,3494.0,2.48065878]
[1735105496435,2.8618,3494.3,3493.9,0.55]
[1735105498828,2.8618,3494.3,3494.0,0.99250634]
[1735105499681,2.86195,3494.2,3494.0,0.99250634]
[1735105500173,2.86195,3494.2,3493.8,1.19401842]
[1735105500344,2.86197,3494.1,3493.8,1.19401842]
[1735105501646,2.86197,3494.1,3493.9,2.48155027]
[1735105502685,4.06271695,3494.3,3494.0,0.55]
[1735105503175,1.27957397,3494.2,3493.8,0.55]
[1735105503342,4.14148397,3494.2,3493.8,0.55]
[1735105504069,4.14148397,3494.2,3493.8,1.74401842]
[1735105505515,4.14148397,3494.2,3493.9,2.48115118]
[1735105506110,2.86191,3494.2,3493.9,2.48115118]
[1735105506613,3.66224,3494.0,3493.9,2.48115118]
[1735105506765,2.86213,3493.9,3493.8,1.19401842]
[1735105506962,4.14170397,3493.9,3493.8,1.19401842]
[1735105508014,3.0809044,3493.9,3493.1,1.19401842]
[1735105508168,2.86248,3493.5,3493.1,1.19401842]
[1735105509810,2.86248,3493.5,3492.9,4.19401842]
[1735105511017,2.86248,3493.5,3492.9,1.19401842]
[1735105512105,2.86248,3493.5,3492.8,4.19401842]
[1735105513529,2.86248,3493.5,3492.9,1.3743]
[1735105513719,2.86248,3493.5,3492.9,2.10968977]
[1735105514019,1.27957397,3493.6,3492.9,2.10968977]
[1735105515202,1.27957397,3493.6,3493.0,0.99123861]
[1735105515515,1.27957397,3493.6,3493.1,0.55]
[1735105516733,4.14196397,3493.6,3493.1,0.55]
[1735105516935,0.8023,3493.5,3493.1,0.55]
[1735105517735,0.8023,3493.5,3493.0,0.55]
[1735105517942,0.8023,3493.5,3493.0,1.10683184]
[1735105522523,2.86204,3494.0,3493.0,1.10683184]
[1735105522524,0.8023,3493.7,3493.0,1.10683184]
[1735105523374,2.08187397,3493.7,3493.0,1.10683184]
[1735105523676,4.94420397,3493.7,3493.0,1.10683184]
[1735105524240,3.66463,3493.7,3493.0,1.10683184]
[1735105524542,4.94420397,3493.7,3493.0,1.10683184]
[1735105525774,2.86238,3493.6,3493.0,0.55]
[1735105526429,1.27957397,3493.5,3493.0,0.55]
[1735105527047,4.14205397,3493.5,3493.0,0.55]
[1735105529183,1.27957397,3493.3,3493.0,0.55]
[1735105529930,4.14205397,3493.5,3493.0,0.55]
[1735105533263,1.27957397,3493.3,3493.0,0.55]
[1735105533462,4.14219397,3493.3,3493.0,0.55]
[1735105534584,1.27957397,3493.1,3492.6,1.95835916]
[1735105534748,4.14236397,3493.1,3492.7,0.55]
[1735105535635,2.86309,3492.8,3492.5,1.19795916]
[1735105535834,1.27957397,3492.7,3492.5,1.19795916]
[1735105536038,2.86319,3492.6,3492.5,1.19795916]
[1735105536752,3.3594064,3492.6,3492.5,1.19795916]
[1735105536949,4.1788064,3492.6,3492.5,1.19795916]
[1735105537185,4.1788064,3492.6,3492.0,1.19795916]
[1735105537186,2.86354,3492.2,3492.0,1.19795916]
[1735105537393,2.8636,3492.1,3492.0,1.19795916]
[1735105537683,4.14317397,3492.1,3492.0,1.19795916]
[1735105538692,4.14317397,3492.1,3491.6,0.99098332]
[1735105539886,4.14317397,3492.1,3491.5,0.7604]
[1735105541566,4.14317397,3492.1,3491.0,37.47753313]
[1735105541567,1.27957397,3491.6,3491.0,36.97655916]
[1735105541895,1.27957397,3491.4,3491.0,4.97655916]
[1735105542234,1.27957397,3491.4,3491.0,3.7786]
[1735105542443,1.27957397,3491.4,3491.0,0.7786]
[1735105543573,1.27957397,3491.6,3491.0,0.7786]
[1735105543797,1.27957397,3491.6,3491.1,0.37786]
[1735105544168,0.75,3491.7,3491.1,0.37786]
[1735105546572,0.75,3491.7,3491.0,0.7786]
[1735105548434,3.61373,3492.0,3491.0,0.7786]
[1735105552041,2.86378,3491.9,3491.0,0.7786]
[1735105553621,2.86378,3491.9,3491.0,3.7786]
[1735105554542,2.86378,3491.9,3491.1,0.7786]
[1735105554692,2.86378,3491.9,3491.1,1.442918]
[1735105555946,2.86378,3491.9,3490.3,1.19795916]
[1735105555947,0.751,3491.1,3490.3,1.19795916]
[1735105556128,2.86468,3490.8,3490.3,1.19795916]
[1735105556626,0.751,3491.1,3490.3,1.19795916]
[1735105556828,0.751,3491.4,3490.4,0.765]
[1735105557150,0.751,3491.4,3490.5,0.48280192]
[1735105557790,3.61523,3491.4,3490.5,0.48280192]
[1735105558930,2.86423,3491.4,3490.6,0.765]
[1735105559338,5.58758037,3491.6,3490.6,0.765]
[1735105559533,5.58758037,3491.6,3490.7,0.71126919]
[1735105559749,2.8641,3491.5,3490.8,0.765]
[1735105560814,2.86422,3491.4,3490.8,0.765]
[1735105561515,2.72354037,3491.6,3490.8,0.765]